[Event "Late-Titled-Tuesday-Blitz-November-28-2023"]
[Site "Chess.com"]
[Date "2023.11.28"]
[Round "11"]
[White "Alohamora11"]
[Black "KNVB"]
[Result "0-1"]
[WhiteElo "2578"]
[BlackElo "2676"]
[TimeControl "180+1"]
[EndTime "16:01:36 PST"]
[Termination "KNVB won by checkmate"]

1. e4 {[%clk 0:02:56.9]} 1... e5 {[%clk 0:02:57.5]} 2. Nf3 {[%clk 0:02:56.4]}
2... Nc6 {[%clk 0:02:57.8]} 3. Bb5 {[%clk 0:02:54.3]} 3... Qf6 {[%clk
0:02:56.6]} 4. Nc3 {[%clk 0:02:52.7]} 4... Bd6 {[%clk 0:02:56.3]} 5. d3 {[%clk
0:02:46.9]} 5... Nge7 {[%clk 0:02:55.3]} 6. Bg5 {[%clk 0:02:34.2]} 6... Qg6
{[%clk 0:02:54.8]} 7. h4 {[%clk 0:02:32.2]} 7... Nd4 {[%clk 0:02:37.4]} 8. Nxd4
{[%clk 0:01:57.3]} 8... exd4 {[%clk 0:02:38.3]} 9. Ne2 {[%clk 0:01:56.9]} 9...
h6 {[%clk 0:01:39.9]} 10. Bxe7 {[%clk 0:01:47.9]} 10... Bxe7 {[%clk 0:01:34.9]}
11. Nf4 {[%clk 0:01:12.8]} 11... Qb6 {[%clk 0:01:04.6]} 12. Nd5 {[%clk
0:01:10.9]} 12... Qa5+ {[%clk 0:01:05.3]} 13. Kf1 {[%clk 0:00:54.3]} 13... Bd6
{[%clk 0:00:29.8]} 14. Bc4 {[%clk 0:00:49.3]} 14... c6 {[%clk 0:00:26.6]} 15.
Qh5 {[%clk 0:00:23.8]} 15... cxd5 {[%clk 0:00:11.4]} 16. Bxd5 {[%clk 0:00:24.7]}
16... Kd8 {[%clk 0:00:05.5]} 17. Qxf7 {[%clk 0:00:23.7]} 17... Rf8 {[%clk
0:00:05.5]} 18. Qxg7 {[%clk 0:00:23.6]} 18... Qd2 {[%clk 0:00:05.7]} 19. f3
{[%clk 0:00:16.5]} 19... b5 {[%clk 0:00:01.3]} 20. Qxd4 {[%clk 0:00:14.4]} 20...
Bg3 {[%clk 0:00:01.5]} 21. Bxa8 {[%clk 0:00:10.8]} 21... d6 {[%clk 0:00:01.8]}
22. Rh3 {[%clk 0:00:06.4]} 22... Bxh3 {[%clk 0:00:01.6]} 23. gxh3 {[%clk
0:00:06.2]} 23... Rxf3+ {[%clk 0:00:02]} 24. Kg1 {[%clk 0:00:05]} 24... Qh2#
{[%clk 0:00:02.4]} 0-1

[Event "Late-Titled-Tuesday-Blitz-November-28-2023"]
[Site "Chess.com"]
[Date "2023.11.28"]
[Round "11"]
[White "Jahonas"]
[Black "SanchezKelvin"]
[Result "0-1"]
[WhiteElo "2423"]
[BlackElo "2538"]
[TimeControl "180+1"]
[EndTime "16:01:39 PST"]
[Termination "SanchezKelvin won by resignation"]

1. e4 {[%clk 0:03:00.9]} 1... e5 {[%clk 0:02:58.8]} 2. Nf3 {[%clk 0:03:01]} 2...
Nc6 {[%clk 0:02:58.4]} 3. Bb5 {[%clk 0:03:00.8]} 3... a6 {[%clk 0:02:58.6]} 4.
Ba4 {[%clk 0:03:00.3]} 4... b5 {[%clk 0:02:58.5]} 5. Bb3 {[%clk 0:03:00.2]} 5...
Nf6 {[%clk 0:02:59.4]} 6. d3 {[%clk 0:02:59.6]} 6... Be7 {[%clk 0:02:59.4]} 7.
O-O {[%clk 0:02:59.7]} 7... O-O {[%clk 0:02:59.4]} 8. Nbd2 {[%clk 0:02:58.6]}
8... d5 {[%clk 0:02:57.2]} 9. exd5 {[%clk 0:02:56.1]} 9... Nxd5 {[%clk
0:02:56.8]} 10. Re1 {[%clk 0:02:56.1]} 10... Bf6 {[%clk 0:02:55.7]} 11. Ne4
{[%clk 0:02:55.9]} 11... Be6 {[%clk 0:02:50.6]} 12. Nfg5 {[%clk 0:02:50.4]}
12... Bxg5 {[%clk 0:02:35.8]} 13. Nxg5 {[%clk 0:02:44.1]} 13... Bf5 {[%clk
0:02:28.6]} 14. Qf3 {[%clk 0:02:33.5]} 14... Nde7 {[%clk 0:02:24.4]} 15. c3
{[%clk 0:02:17.3]} 15... Qxd3 {[%clk 0:02:19.7]} 16. Re3 {[%clk 0:02:12.2]}
16... Qd6 {[%clk 0:02:16.8]} 17. Nxf7 {[%clk 0:01:59.7]} 17... Rxf7 {[%clk
0:02:12.1]} 18. Bxf7+ {[%clk 0:01:58.9]} 18... Kxf7 {[%clk 0:02:12.7]} 19. g4
{[%clk 0:01:58]} 19... Qg6 {[%clk 0:02:09]} 20. h3 {[%clk 0:01:44.7]} 20... Kg8
{[%clk 0:02:08]} 21. Rxe5 {[%clk 0:01:42.7]} 21... Rf8 {[%clk 0:01:55.8]} 22.
Re1 {[%clk 0:01:26.4]} 22... h5 {[%clk 0:01:50.6]} 23. Qg3 {[%clk 0:01:05.5]}
23... hxg4 {[%clk 0:01:46.4]} 24. h4 {[%clk 0:01:04.6]} 24... Bc8 {[%clk
0:01:34.2]} 25. Qxc7 {[%clk 0:00:59.6]} 25... Nf5 {[%clk 0:01:30.6]} 26. Bg5
{[%clk 0:00:54.5]} 26... b4 {[%clk 0:00:37]} 27. Rad1 {[%clk 0:00:39.3]} 27...
bxc3 {[%clk 0:00:35.5]} 28. bxc3 {[%clk 0:00:38.4]} 28... Kh7 {[%clk 0:00:35.8]}
29. Qh2 {[%clk 0:00:19.2]} 29... Qf7 {[%clk 0:00:24.9]} 30. Re4 {[%clk
0:00:14.6]} 30... Qxa2 {[%clk 0:00:22]} 31. Rxg4 {[%clk 0:00:13.1]} 31... Qe2
{[%clk 0:00:21.6]} 32. Rgd4 {[%clk 0:00:08]} 32... Ncxd4 {[%clk 0:00:20.6]} 0-1

[Event "Late-Titled-Tuesday-Blitz-November-28-2023"]
[Site "Chess.com"]
[Date "2023.11.28"]
[Round "11"]
[White "Likvidator228"]
[Black "Harry_Rakkel"]
[Result "1-0"]
[WhiteElo "2579"]
[BlackElo "2651"]
[TimeControl "180+1"]
[EndTime "16:01:42 PST"]
[Termination "Likvidator228 won by resignation"]

1. d4 {[%clk 0:03:00.9]} 1... Nf6 {[%clk 0:02:59]} 2. c4 {[%clk 0:03:00.5]} 2...
e6 {[%clk 0:02:59]} 3. g3 {[%clk 0:03:00.4]} 3... d5 {[%clk 0:02:57.6]} 4. Bg2
{[%clk 0:02:59.3]} 4... Bb4+ {[%clk 0:02:57.2]} 5. Bd2 {[%clk 0:02:58.7]} 5...
Be7 {[%clk 0:02:56.8]} 6. Nf3 {[%clk 0:02:58]} 6... O-O {[%clk 0:02:56.5]} 7.
Qc2 {[%clk 0:02:57.4]} 7... Nbd7 {[%clk 0:02:54.4]} 8. O-O {[%clk 0:02:57.7]}
8... c6 {[%clk 0:02:52.8]} 9. Bf4 {[%clk 0:02:52.7]} 9... Ne4 {[%clk 0:02:51.4]}
10. Rd1 {[%clk 0:02:52]} 10... g5 {[%clk 0:02:44.6]} 11. Be3 {[%clk 0:02:41.7]}
11... f5 {[%clk 0:02:43.1]} 12. Nc3 {[%clk 0:02:41.1]} 12... Qe8 {[%clk
0:02:27.4]} 13. Nxe4 {[%clk 0:02:37.4]} 13... dxe4 {[%clk 0:02:22.3]} 14. Nxg5
{[%clk 0:02:38]} 14... Nf6 {[%clk 0:02:14]} 15. Nh3 {[%clk 0:02:27.7]} 15... Ng4
{[%clk 0:01:57.3]} 16. Bf4 {[%clk 0:02:23.7]} 16... Rf7 {[%clk 0:01:51.5]} 17.
f3 {[%clk 0:02:23.8]} 17... e5 {[%clk 0:01:34.3]} 18. fxg4 {[%clk 0:02:09.5]}
18... exf4 {[%clk 0:01:24.3]} 19. Nxf4 {[%clk 0:02:09.3]} 19... fxg4 {[%clk
0:01:13.5]} 20. Qxe4 {[%clk 0:02:08.6]} 20... Bf5 {[%clk 0:01:11.3]} 21. Qe3
{[%clk 0:01:46.5]} 21... Qf8 {[%clk 0:01:02.9]} 22. Qf2 {[%clk 0:01:43.2]} 22...
Re8 {[%clk 0:00:50.5]} 23. e4 {[%clk 0:01:40.9]} 23... Bc8 {[%clk 0:00:50.2]}
24. e5 {[%clk 0:01:38]} 24... Bg5 {[%clk 0:00:49.8]} 25. Rf1 {[%clk 0:01:37.7]}
25... Qh6 {[%clk 0:00:48.3]} 26. Rae1 {[%clk 0:01:01.9]} 26... Bf5 {[%clk
0:00:33.2]} 27. d5 {[%clk 0:00:58.8]} 27... Bd3 {[%clk 0:00:30.8]} 28. e6 {[%clk
0:00:54.5]} 28... Rf6 {[%clk 0:00:27.6]} 29. Qxa7 {[%clk 0:00:47.6]} 29... Bxf1
{[%clk 0:00:20.7]} 30. Rxf1 {[%clk 0:00:46.8]} 30... Bxf4 {[%clk 0:00:20.7]} 31.
gxf4 {[%clk 0:00:46.5]} 31... Rxf4 {[%clk 0:00:21]} 32. Rxf4 {[%clk 0:00:23.5]}
32... Qxf4 {[%clk 0:00:20.3]} 33. Qf2 {[%clk 0:00:24.2]} 33... Qc1+ {[%clk
0:00:16.4]} 34. Bf1 {[%clk 0:00:24.6]} 34... Qg5 {[%clk 0:00:08.7]} 35. Qf7+
{[%clk 0:00:22.1]} 1-0

[Event "Late-Titled-Tuesday-Blitz-November-28-2023"]
[Site "Chess.com"]
[Date "2023.11.28"]
[Round "11"]
[White "TanitoluwaAps116"]
[Black "FuenfgegenWilly"]
[Result "1-0"]
[WhiteElo "2672"]
[BlackElo "2481"]
[TimeControl "180+1"]
[EndTime "16:01:43 PST"]
[Termination "TanitoluwaAps116 won by checkmate"]

1. e4 {[%clk 0:02:49.8]} 1... e5 {[%clk 0:02:59.8]} 2. Nf3 {[%clk 0:02:49.6]}
2... Nc6 {[%clk 0:03:00.4]} 3. Bc4 {[%clk 0:02:47.1]} 3... Nf6 {[%clk
0:03:00.7]} 4. d3 {[%clk 0:02:46.9]} 4... d5 {[%clk 0:03:01.2]} 5. exd5 {[%clk
0:02:44.6]} 5... Nxd5 {[%clk 0:03:02.1]} 6. O-O {[%clk 0:02:44.7]} 6... Bc5
{[%clk 0:03:02.7]} 7. Re1 {[%clk 0:02:44.1]} 7... O-O {[%clk 0:03:03.3]} 8. Nxe5
{[%clk 0:02:24.4]} 8... Nxe5 {[%clk 0:03:04.2]} 9. Rxe5 {[%clk 0:02:24.4]} 9...
Bxf2+ {[%clk 0:03:05.1]} 10. Kxf2 {[%clk 0:02:18]} 10... Qh4+ {[%clk 0:03:05.6]}
11. Kf1 {[%clk 0:02:07.1]} 11... Qf6+ {[%clk 0:03:05.7]} 12. Qf3 {[%clk
0:02:06.6]} 12... Qxe5 {[%clk 0:03:06.6]} 13. Bxd5 {[%clk 0:02:05]} 13... c6
{[%clk 0:03:07.1]} 14. Bb3 {[%clk 0:01:59.7]} 14... Qxh2 {[%clk 0:03:07.1]} 15.
Nc3 {[%clk 0:01:48]} 15... Qh1+ {[%clk 0:03:06.6]} 16. Kf2 {[%clk 0:01:48.1]}
16... a5 {[%clk 0:02:59.4]} 17. a3 {[%clk 0:01:29.6]} 17... a4 {[%clk
0:02:59.3]} 18. Ba2 {[%clk 0:01:29.1]} 18... Ra5 {[%clk 0:03:00.2]} 19. Rb1
{[%clk 0:01:20.3]} 19... Rf5 {[%clk 0:02:45.7]} 20. Bf4 {[%clk 0:01:18.9]} 20...
Qh4+ {[%clk 0:02:46]} 21. g3 {[%clk 0:01:18.9]} 21... Qf6 {[%clk 0:01:29.1]} 22.
Ne4 {[%clk 0:01:09.8]} 22... Qd4+ {[%clk 0:01:29]} 23. Qe3 {[%clk 0:01:09.3]}
23... Qd8 {[%clk 0:01:20.1]} 24. Kg1 {[%clk 0:00:59.4]} 24... Re8 {[%clk
0:01:07.4]} 25. Re1 {[%clk 0:00:57.4]} 25... Be6 {[%clk 0:01:05.4]} 26. Nd6
{[%clk 0:00:54.9]} 26... Rf8 {[%clk 0:00:31.8]} 27. Bxe6 {[%clk 0:00:50.9]}
27... Rxf4 {[%clk 0:00:29.7]} 28. Qxf4 {[%clk 0:00:38.1]} 28... fxe6 {[%clk
0:00:29.7]} 29. Qe5 {[%clk 0:00:37.9]} 29... Rf6 {[%clk 0:00:27.5]} 30. Ne4
{[%clk 0:00:34.6]} 30... Rg6 {[%clk 0:00:27]} 31. Rf1 {[%clk 0:00:32.9]} 31...
h6 {[%clk 0:00:23.8]} 32. Kg2 {[%clk 0:00:27.7]} 32... Qb6 {[%clk 0:00:21.8]}
33. Qb8+ {[%clk 0:00:24.9]} 33... Kh7 {[%clk 0:00:21.7]} 34. Rf8 {[%clk
0:00:25.5]} 34... Rg4 {[%clk 0:00:18.4]} 35. Qe8 {[%clk 0:00:23]} 35... Rxg3+
{[%clk 0:00:08]} 36. Nxg3 {[%clk 0:00:21.4]} 36... g5 {[%clk 0:00:06.4]} 37.
Qf7# {[%clk 0:00:20.6]} 1-0

[Event "Late-Titled-Tuesday-Blitz-November-28-2023"]
[Site "Chess.com"]
[Date "2023.11.28"]
[Round "11"]
[White "wanyaland"]
[Black "FM_Kappeler"]
[Result "1-0"]
[WhiteElo "2445"]
[BlackElo "2334"]
[TimeControl "180+1"]
[EndTime "16:01:45 PST"]
[Termination "wanyaland won by resignation"]

1. d4 {[%clk 0:02:51.6]} 1... d5 {[%clk 0:02:59.3]} 2. c4 {[%clk 0:02:51.1]}
2... c6 {[%clk 0:02:59.5]} 3. Nc3 {[%clk 0:02:49.7]} 3... Nf6 {[%clk 0:02:59.5]}
4. Nf3 {[%clk 0:02:49.4]} 4... a6 {[%clk 0:02:59.6]} 5. e3 {[%clk 0:02:48.9]}
5... b5 {[%clk 0:02:59.4]} 6. b3 {[%clk 0:02:48]} 6... Bg4 {[%clk 0:02:59.2]} 7.
Bd3 {[%clk 0:02:46.7]} 7... e6 {[%clk 0:02:56.5]} 8. O-O {[%clk 0:02:44.5]} 8...
Nbd7 {[%clk 0:02:55.8]} 9. a4 {[%clk 0:02:42.2]} 9... b4 {[%clk 0:02:44.6]} 10.
Nb1 {[%clk 0:02:41.2]} 10... Bd6 {[%clk 0:02:40.9]} 11. Nbd2 {[%clk 0:02:38.3]}
11... O-O {[%clk 0:02:39.6]} 12. Bb2 {[%clk 0:02:37.7]} 12... e5 {[%clk
0:02:23.8]} 13. dxe5 {[%clk 0:02:35.8]} 13... Nxe5 {[%clk 0:02:22.6]} 14. Be2
{[%clk 0:02:36.1]} 14... Ng6 {[%clk 0:02:04.1]} 15. Rc1 {[%clk 0:02:31.7]} 15...
Re8 {[%clk 0:01:57.2]} 16. cxd5 {[%clk 0:02:29.9]} 16... cxd5 {[%clk 0:01:57]}
17. Rc6 {[%clk 0:02:29.2]} 17... a5 {[%clk 0:01:37.2]} 18. Qc2 {[%clk
0:02:24.1]} 18... Nf4 {[%clk 0:01:28]} 19. Bb5 {[%clk 0:02:19.7]} 19... Ne6
{[%clk 0:00:58.2]} 20. Bxf6 {[%clk 0:02:08.6]} 20... gxf6 {[%clk 0:00:52.2]} 21.
Bd3 {[%clk 0:01:57.6]} 21... Ng5 {[%clk 0:00:46]} 22. Nxg5 {[%clk 0:01:53.6]}
22... fxg5 {[%clk 0:00:46.2]} 23. Bxh7+ {[%clk 0:01:53]} 23... Kg7 {[%clk
0:00:46.7]} 24. Bf5 {[%clk 0:01:51]} 24... Rh8 {[%clk 0:00:42.7]} 25. h3 {[%clk
0:01:45.1]} 25... Be2 {[%clk 0:00:37.9]} 26. Re1 {[%clk 0:01:43.5]} 26... Ba6
{[%clk 0:00:36.3]} 27. Qb2+ {[%clk 0:01:39.2]} 27... f6 {[%clk 0:00:30]} 28. Nf3
{[%clk 0:01:35.1]} 28... Bb7 {[%clk 0:00:27.3]} 29. Nxg5 {[%clk 0:01:33.9]}
29... Be5 {[%clk 0:00:18.4]} 30. Ne6+ {[%clk 0:01:26]} 30... Kh6 {[%clk
0:00:17.6]} 31. Qxe5 {[%clk 0:01:18.1]} 31... fxe5 {[%clk 0:00:16.7]} 32. Nxd8+
{[%clk 0:01:16.9]} 32... Bxc6 {[%clk 0:00:13.9]} 33. Nxc6 {[%clk 0:01:16.9]}
33... Rhe8 {[%clk 0:00:12.6]} 34. Rd1 {[%clk 0:01:14.2]} 34... Kg5 {[%clk
0:00:12.6]} 35. g4 {[%clk 0:01:12.5]} 35... Ra6 {[%clk 0:00:10.8]} 36. Nxe5
{[%clk 0:01:09.3]} 36... Rxe5 {[%clk 0:00:09.3]} 37. f4+ {[%clk 0:01:08]} 37...
Kh4 {[%clk 0:00:10]} 38. fxe5 {[%clk 0:01:07.2]} 38... Rc6 {[%clk 0:00:09.3]}
39. Kg2 {[%clk 0:01:01.6]} 39... Rc3 {[%clk 0:00:09.1]} 40. Kf3 {[%clk
0:00:59.8]} 40... d4 {[%clk 0:00:08.5]} 41. Rxd4 {[%clk 0:01:00]} 41... Rc1
{[%clk 0:00:06.9]} 42. e6 {[%clk 0:00:59.1]} 42... Rf1+ {[%clk 0:00:06.2]} 43.
Ke4 {[%clk 0:00:59.3]} 43... Kg3 {[%clk 0:00:05.6]} 44. e7 {[%clk 0:00:59.5]}
44... Re1 {[%clk 0:00:03.9]} 45. e8=Q {[%clk 0:00:58.4]} 1-0

[Event "Late-Titled-Tuesday-Blitz-November-28-2023"]
[Site "Chess.com"]
[Date "2023.11.28"]
[Round "11"]
[White "DamianoLew95"]
[Black "Goryachkina"]
[Result "1/2-1/2"]
[WhiteElo "2738"]
[BlackElo "2659"]
[TimeControl "180+1"]
[EndTime "16:01:51 PST"]
[Termination "Game drawn by repetition"]

1. e4 {[%clk 0:03:00.9]} 1... c5 {[%clk 0:03:00]} 2. Nf3 {[%clk 0:03:00.9]} 2...
e6 {[%clk 0:03:00.4]} 3. d4 {[%clk 0:02:58.2]} 3... cxd4 {[%clk 0:03:00.7]} 4.
Nxd4 {[%clk 0:02:59.1]} 4... Nc6 {[%clk 0:03:01.1]} 5. Nc3 {[%clk 0:02:58.8]}
5... Bc5 {[%clk 0:03:01.4]} 6. Ndb5 {[%clk 0:02:38.8]} 6... Nf6 {[%clk
0:03:00.8]} 7. Nd6+ {[%clk 0:02:30.7]} 7... Ke7 {[%clk 0:03:00.7]} 8. Bf4 {[%clk
0:02:29.3]} 8... e5 {[%clk 0:03:00.9]} 9. Nf5+ {[%clk 0:02:29.6]} 9... Kf8
{[%clk 0:03:01.2]} 10. Bg5 {[%clk 0:02:10.9]} 10... d6 {[%clk 0:03:01.1]} 11.
Ne3 {[%clk 0:01:53.8]} 11... h6 {[%clk 0:02:55.9]} 12. Bxf6 {[%clk 0:01:51.3]}
12... Qxf6 {[%clk 0:02:55.9]} 13. Ncd5 {[%clk 0:01:47.3]} 13... Qd8 {[%clk
0:02:55.4]} 14. Be2 {[%clk 0:01:37.9]} 14... g6 {[%clk 0:02:53.2]} 15. Qd2
{[%clk 0:01:31.8]} 15... Kg7 {[%clk 0:02:50.6]} 16. b4 {[%clk 0:01:21.8]} 16...
Bxe3 {[%clk 0:02:33.2]} 17. fxe3 {[%clk 0:01:22.7]} 17... Be6 {[%clk 0:02:32.6]}
18. O-O {[%clk 0:01:14.9]} 18... a5 {[%clk 0:02:21.4]} 19. b5 {[%clk 0:01:13]}
19... Ne7 {[%clk 0:02:21.5]} 20. c4 {[%clk 0:01:02.4]} 20... Bxd5 {[%clk
0:02:20]} 21. exd5 {[%clk 0:00:58.4]} 21... Rc8 {[%clk 0:02:18.3]} 22. Bd3
{[%clk 0:00:53.8]} 22... f5 {[%clk 0:02:12.3]} 23. g4 {[%clk 0:00:49.5]} 23...
fxg4 {[%clk 0:02:00.8]} 24. Qg2 {[%clk 0:00:43.9]} 24... Qd7 {[%clk 0:02:00.7]}
25. Kh1 {[%clk 0:00:41.9]} 25... Rcf8 {[%clk 0:01:54.4]} 26. Rg1 {[%clk
0:00:42.2]} 26... h5 {[%clk 0:01:52.6]} 27. Be4 {[%clk 0:00:36]} 27... Nf5
{[%clk 0:01:51.8]} 28. Rae1 {[%clk 0:00:25.7]} 28... b6 {[%clk 0:01:47.6]} 29.
Rgf1 {[%clk 0:00:20.9]} 29... Nh4 {[%clk 0:01:38.2]} 30. Qg3 {[%clk 0:00:20]}
30... Qe7 {[%clk 0:01:35.3]} 31. Kg1 {[%clk 0:00:18.6]} 31... Rxf1+ {[%clk
0:01:32.6]} 32. Rxf1 {[%clk 0:00:19.5]} 32... Rf8 {[%clk 0:01:32.5]} 33. Rxf8
{[%clk 0:00:19]} 33... Kxf8 {[%clk 0:01:32.9]} 34. Qf2+ {[%clk 0:00:18.5]} 34...
Kg7 {[%clk 0:01:32.7]} 35. a4 {[%clk 0:00:17.6]} 35... Qf6 {[%clk 0:01:31.1]}
36. Qd2 {[%clk 0:00:10.7]} 36... Nf3+ {[%clk 0:01:25.4]} 37. Bxf3 {[%clk
0:00:11.1]} 37... Qxf3 {[%clk 0:01:25.7]} 38. c5 {[%clk 0:00:11.2]} 38... bxc5
{[%clk 0:01:01.8]} 39. b6 {[%clk 0:00:10.8]} 39... Qe4 {[%clk 0:01:00.2]} 40.
Kf2 {[%clk 0:00:09.8]} 40... Qf3+ {[%clk 0:00:32.7]} 41. Kg1 {[%clk 0:00:09.5]}
41... Qe4 {[%clk 0:00:33.2]} 42. Kf2 {[%clk 0:00:10]} 42... Qf3+ {[%clk
0:00:32.5]} 43. Kg1 {[%clk 0:00:10.2]} 1/2-1/2

[Event "Late-Titled-Tuesday-Blitz-November-28-2023"]
[Site "Chess.com"]
[Date "2023.11.28"]
[Round "11"]
[White "Zampronha1971"]
[Black "Nf3c5"]
[Result "0-1"]
[WhiteElo "2404"]
[BlackElo "2525"]
[TimeControl "180+1"]
[EndTime "16:01:51 PST"]
[Termination "Nf3c5 won by resignation"]

1. e4 {[%clk 0:03:00.9]} 1... c5 {[%clk 0:02:58.2]} 2. Nf3 {[%clk 0:03:01.2]}
2... a6 {[%clk 0:02:57.2]} 3. Nc3 {[%clk 0:02:59.6]} 3... b5 {[%clk 0:02:56.5]}
4. d4 {[%clk 0:02:59.5]} 4... cxd4 {[%clk 0:02:57.4]} 5. Nxd4 {[%clk 0:02:59.5]}
5... e6 {[%clk 0:02:58]} 6. Be2 {[%clk 0:02:57.9]} 6... Bb7 {[%clk 0:02:51.5]}
7. a3 {[%clk 0:02:57.1]} 7... Nc6 {[%clk 0:01:57.9]} 8. O-O {[%clk 0:02:54.9]}
8... Nge7 {[%clk 0:01:58]} 9. Be3 {[%clk 0:02:51.7]} 9... Nxd4 {[%clk 0:01:55]}
10. Bxd4 {[%clk 0:02:52.6]} 10... Nc6 {[%clk 0:01:55.5]} 11. Be3 {[%clk
0:02:51.3]} 11... Be7 {[%clk 0:01:50.7]} 12. f4 {[%clk 0:02:51.4]} 12... O-O
{[%clk 0:01:45.4]} 13. Qe1 {[%clk 0:02:51.6]} 13... d6 {[%clk 0:01:35.6]} 14.
Qg3 {[%clk 0:02:50.9]} 14... Bf6 {[%clk 0:01:29.7]} 15. Rad1 {[%clk 0:02:47.9]}
15... Qc7 {[%clk 0:01:29.7]} 16. Bd3 {[%clk 0:02:43.7]} 16... b4 {[%clk
0:01:23]} 17. axb4 {[%clk 0:02:42.9]} 17... Nxb4 {[%clk 0:01:22.7]} 18. Qf2
{[%clk 0:02:42]} 18... Nxd3 {[%clk 0:01:19.1]} 19. cxd3 {[%clk 0:02:41.4]} 19...
Bc6 {[%clk 0:01:13]} 20. d4 {[%clk 0:02:37.4]} 20... Qb7 {[%clk 0:01:12.4]} 21.
e5 {[%clk 0:02:35.9]} 21... Be7 {[%clk 0:01:03.2]} 22. Rd2 {[%clk 0:02:26.8]}
22... g6 {[%clk 0:01:01.8]} 23. Qg3 {[%clk 0:02:22.8]} 23... Kh8 {[%clk
0:00:57.6]} 24. f5 {[%clk 0:02:19.8]} 24... exf5 {[%clk 0:00:52.3]} 25. exd6
{[%clk 0:02:19.3]} 25... Bf6 {[%clk 0:00:52.6]} 26. Bg5 {[%clk 0:02:14.4]} 26...
Bg7 {[%clk 0:00:52.1]} 27. Be7 {[%clk 0:02:12.6]} 27... Rfe8 {[%clk 0:00:51.8]}
28. d5 {[%clk 0:02:13]} 28... Bd7 {[%clk 0:00:47.3]} 29. Re1 {[%clk 0:01:54.9]}
29... Kg8 {[%clk 0:00:47]} 30. Qf2 {[%clk 0:01:41.9]} 30... a5 {[%clk
0:00:46.4]} 31. Ne2 {[%clk 0:01:31.4]} 31... a4 {[%clk 0:00:44.9]} 32. Nd4
{[%clk 0:01:29.1]} 32... Qxd5 {[%clk 0:00:43.7]} 33. Nf3 {[%clk 0:01:25]} 33...
Qa5 {[%clk 0:00:41.2]} 34. Rc2 {[%clk 0:01:22.5]} 34... a3 {[%clk 0:00:39.1]}
35. bxa3 {[%clk 0:01:21.7]} 35... Qxa3 {[%clk 0:00:39.6]} 36. Rc7 {[%clk
0:01:20.2]} 36... Qa4 {[%clk 0:00:39.7]} 37. h3 {[%clk 0:01:09.5]} 37... h6
{[%clk 0:00:37.6]} 38. Ne5 {[%clk 0:01:02]} 38... Be6 {[%clk 0:00:25.9]} 39.
Nxg6 {[%clk 0:00:57.9]} 39... Bd4 {[%clk 0:00:24.3]} 40. Re3 {[%clk 0:00:53.6]}
40... fxg6 {[%clk 0:00:23.9]} 41. Qf3 {[%clk 0:00:51]} 41... Bxe3+ {[%clk
0:00:18.1]} 42. Qxe3 {[%clk 0:00:51.3]} 42... Qa1+ {[%clk 0:00:18.2]} 43. Kh2
{[%clk 0:00:50.9]} 43... Bf7 {[%clk 0:00:17.5]} 44. Qxh6 {[%clk 0:00:50.3]}
44... Qe5+ {[%clk 0:00:17.4]} 45. Kg1 {[%clk 0:00:44.3]} 45... Ra1+ {[%clk
0:00:17.1]} 46. Rc1 {[%clk 0:00:42.8]} 46... Qc5+ {[%clk 0:00:15.8]} 47. Kh2
{[%clk 0:00:40]} 47... Rxc1 {[%clk 0:00:15.4]} 0-1

[Event "Late-Titled-Tuesday-Blitz-November-28-2023"]
[Site "Chess.com"]
[Date "2023.11.28"]
[Round "11"]
[White "Alexei_Gubajdullin"]
[Black "venturov"]
[Result "1-0"]
[WhiteElo "2646"]
[BlackElo "2483"]
[TimeControl "180+1"]
[EndTime "16:02:04 PST"]
[Termination "Alexei_Gubajdullin won on time"]

1. d4 {[%clk 0:02:59.4]} 1... Nf6 {[%clk 0:02:58.7]} 2. Nf3 {[%clk 0:02:59.3]}
2... g6 {[%clk 0:02:58.5]} 3. Bf4 {[%clk 0:02:59.5]} 3... Bg7 {[%clk 0:02:57.9]}
4. e3 {[%clk 0:02:59.7]} 4... O-O {[%clk 0:02:50.6]} 5. Be2 {[%clk 0:02:59.7]}
5... c5 {[%clk 0:02:50.8]} 6. O-O {[%clk 0:02:59.8]} 6... cxd4 {[%clk
0:02:47.9]} 7. exd4 {[%clk 0:02:59.8]} 7... d5 {[%clk 0:02:48.6]} 8. Nbd2 {[%clk
0:02:58.8]} 8... Ne4 {[%clk 0:02:45.4]} 9. c3 {[%clk 0:02:56.7]} 9... Nc6 {[%clk
0:02:45.4]} 10. Nxe4 {[%clk 0:02:53.3]} 10... dxe4 {[%clk 0:02:46.3]} 11. Ng5
{[%clk 0:02:53.5]} 11... Bf5 {[%clk 0:01:52.1]} 12. g4 {[%clk 0:02:53]} 12...
Bd7 {[%clk 0:01:46.9]} 13. Nxe4 {[%clk 0:02:52.2]} 13... e5 {[%clk 0:01:37.1]}
14. dxe5 {[%clk 0:02:50.3]} 14... Nxe5 {[%clk 0:01:38]} 15. Bg5 {[%clk
0:02:49.4]} 15... Qb6 {[%clk 0:01:34.1]} 16. Qd6 {[%clk 0:02:34.7]} 16... Qxd6
{[%clk 0:01:19.3]} 17. Nxd6 {[%clk 0:02:34.2]} 17... Bc6 {[%clk 0:01:19.8]} 18.
Be7 {[%clk 0:02:28.5]} 18... Rfb8 {[%clk 0:01:15.5]} 19. f4 {[%clk 0:02:27.2]}
19... Nd7 {[%clk 0:01:10.3]} 20. f5 {[%clk 0:02:25.2]} 20... Ne5 {[%clk
0:01:03.9]} 21. g5 {[%clk 0:02:00.3]} 21... Bf8 {[%clk 0:00:59.8]} 22. f6 {[%clk
0:01:59.5]} 22... Bd5 {[%clk 0:00:39.8]} 23. c4 {[%clk 0:01:48.1]} 23... Be6
{[%clk 0:00:40]} 24. c5 {[%clk 0:01:48.2]} 24... Nc6 {[%clk 0:00:40.1]} 25. Bf3
{[%clk 0:01:37]} 25... Nxe7 {[%clk 0:00:31.1]} 26. fxe7 {[%clk 0:01:15.3]} 26...
Bxe7 {[%clk 0:00:32]} 27. Nxb7 {[%clk 0:01:15.5]} 27... Rc8 {[%clk 0:00:20.5]}
28. b4 {[%clk 0:01:11.1]} 28... Rab8 {[%clk 0:00:19.5]} 29. h4 {[%clk
0:01:10.3]} 29... Rc7 {[%clk 0:00:16.1]} 30. a4 {[%clk 0:00:53.9]} 30... Rbxb7
{[%clk 0:00:15.1]} 31. Bxb7 {[%clk 0:00:53.1]} 31... Rxb7 {[%clk 0:00:16]} 32.
Rfc1 {[%clk 0:00:39.8]} 32... Rxb4 {[%clk 0:00:15.4]} 33. c6 {[%clk 0:00:40]}
33... Rxh4 {[%clk 0:00:12.3]} 34. c7 {[%clk 0:00:38.7]} 34... Bxg5 {[%clk
0:00:10.2]} 35. Rc6 {[%clk 0:00:35.4]} 35... Bc8 {[%clk 0:00:06.5]} 36. Rd1
{[%clk 0:00:34.5]} 36... Kg7 {[%clk 0:00:06.6]} 37. Rd8 {[%clk 0:00:28.6]} 37...
Bf5 {[%clk 0:00:03.3]} 38. Kf2 {[%clk 0:00:25.7]} 38... Rxa4 {[%clk 0:00:03.5]}
39. Rd5 {[%clk 0:00:24]} 39... Ra2+ {[%clk 0:00:03.1]} 40. Ke1 {[%clk
0:00:22.9]} 40... Bh3 {[%clk 0:00:02.1]} 41. Rxg5 {[%clk 0:00:21.9]} 1-0